[Event "Titled Tuesday Blitz October 31 Late 2023"]
[White "Leiva, Gianmarco"]
[Black "Kovalev, Vladislav"]
[WhiteFideId "3804399"]
[BlackFideId "13504398"]
[WhiteElo "2697"]
[BlackElo "2901"]
[Result "0-1"]
[Round "8"]
[TimeControl "180+1"]
[Date "2023.10.31"]
[WhiteClock "0:00:01"]
[BlackClock "0:00:30"]
[Board "19"]

1. e4 {[%clk 0:03:00]}  e5 {[%clk 0:02:49]} 2. Nf3 {[%clk 0:03:00]}  Nc6 {[%clk 0:02:50]} 3. Bc4 {[%clk 0:02:59]}  Nf6 {[%clk 0:02:50]} 4. d3 {[%clk 0:02:59]}  Bc5 {[%clk 0:02:51]} 5. O-O {[%clk 0:02:56]}  d6 {[%clk 0:02:51]} 6. c3 {[%clk 0:02:56]}  a6 {[%clk 0:02:52]} 7. Nbd2 {[%clk 0:02:46]}  h6 {[%clk 0:02:50]} 8. Re1 {[%clk 0:02:33]}  Ba7 {[%clk 0:02:50]} 9. Nf1 {[%clk 0:02:29]}  Na5 {[%clk 0:02:47]} 10. Bb3 {[%clk 0:02:25]}  Nxb3 {[%clk 0:02:47]} 11. axb3 {[%clk 0:02:26]}  O-O {[%clk 0:02:46]} 12. b4 {[%clk 0:02:25]}  Re8 {[%clk 0:02:45]} 13. Be3 {[%clk 0:02:25]}  Bb8 {[%clk 0:02:37]} 14. b5 {[%clk 0:02:19]}  b6 {[%clk 0:02:32]} 15. c4 {[%clk 0:02:16]}  Bb7 {[%clk 0:02:31]} 16. bxa6 {[%clk 0:02:15]}  Rxa6 {[%clk 0:02:28]} 17. b4 {[%clk 0:02:11]}  Rxa1 {[%clk 0:02:27]} 18. Qxa1 {[%clk 0:02:12]}  c6 {[%clk 0:02:20]} 19. Ng3 {[%clk 0:01:54]}  d5 {[%clk 0:02:12]} 20. Rb1 {[%clk 0:01:49]}  d4 {[%clk 0:01:59]} 21. Bd2 {[%clk 0:01:48]}  Bc8 {[%clk 0:01:59]} 22. Qa8 {[%clk 0:01:43]}  Qc7 {[%clk 0:01:58]} 23. Nh4 {[%clk 0:01:36]}  Kh7 {[%clk 0:01:51]} 24. Nhf5 {[%clk 0:01:35]}  Ng8 {[%clk 0:01:50]} 25. b5 {[%clk 0:01:04]}  c5 {[%clk 0:01:45]} 26. Qa3 {[%clk 0:00:46]}  g6 {[%clk 0:01:32]} 27. Nh4 {[%clk 0:00:46]}  Qd8 {[%clk 0:01:20]} 28. Nf3 {[%clk 0:00:43]}  Nf6 {[%clk 0:01:21]} 29. Qc1 {[%clk 0:00:42]}  Ng8 {[%clk 0:01:19]} 30. h3 {[%clk 0:00:30]}  Bd6 {[%clk 0:01:18]} 31. Ra1 {[%clk 0:00:30]}  Bb7 {[%clk 0:01:15]} 32. Nh2 {[%clk 0:00:24]}  Qc7 {[%clk 0:01:05]} 33. Ng4 {[%clk 0:00:20]}  h5 {[%clk 0:01:05]} 34. Nh2 {[%clk 0:00:20]}  Ra8 {[%clk 0:01:06]} 35. Nf3 {[%clk 0:00:20]}  Rxa1 {[%clk 0:01:05]} 36. Qxa1 {[%clk 0:00:20]}  f6 {[%clk 0:01:04]} 37. Qa7 {[%clk 0:00:17]}  Ne7 {[%clk 0:01:03]} 38. Ne2 {[%clk 0:00:13]}  Nc8 {[%clk 0:01:04]} 39. Qa1 {[%clk 0:00:12]}  Bf8 {[%clk 0:01:04]} 40. Bc1 {[%clk 0:00:12]}  Nd6 {[%clk 0:01:03]} 41. Qa2 {[%clk 0:00:11]}  Qb8 {[%clk 0:01:03]} 42. Ng3 {[%clk 0:00:11]}  Qa8 {[%clk 0:01:03]} 43. Qxa8 {[%clk 0:00:11]}  Bxa8 {[%clk 0:01:04]} 44. Ne1 {[%clk 0:00:11]}  Bg7 {[%clk 0:00:54]} 45. Kf1 {[%clk 0:00:09]}  h4 {[%clk 0:00:54]} 46. Ne2 {[%clk 0:00:08]}  f5 {[%clk 0:00:54]} 47. f3 {[%clk 0:00:09]}  Bf6 {[%clk 0:00:53]} 48. Nc2 {[%clk 0:00:07]}  Bb7 {[%clk 0:00:52]} 49. Na3 {[%clk 0:00:07]}  Bc8 {[%clk 0:00:52]} 50. Nb1 {[%clk 0:00:05]}  Be6 {[%clk 0:00:52]} 51. Nd2 {[%clk 0:00:05]}  Bg5 {[%clk 0:00:46]} 52. Ke1 {[%clk 0:00:04]}  Be3 {[%clk 0:00:45]} 53. Nb3 {[%clk 0:00:02]}  f4 {[%clk 0:00:41]} 54. Nd2 {[%clk 0:00:02]}  Bxd2+ {[%clk 0:00:39]} 55. Kxd2 {[%clk 0:00:02]}  Nxc4+ {[%clk 0:00:40]} 56. dxc4 {[%clk 0:00:02]}  Bxc4 {[%clk 0:00:41]} 57. Ba3 {[%clk 0:00:02]}  Bxb5 {[%clk 0:00:40]} 58. Nc1 {[%clk 0:00:02]}  Kg7 {[%clk 0:00:38]} 59. Nd3 {[%clk 0:00:03]}  Kf6 {[%clk 0:00:37]} 60. Nf2 {[%clk 0:00:03]}  Bf1 {[%clk 0:00:34]} 61. Ng4+ {[%clk 0:00:03]}  Ke6 {[%clk 0:00:35]} 62. Ke1 {[%clk 0:00:03]}  Bxg2 {[%clk 0:00:35]} 63. Kf2 {[%clk 0:00:03]}  Bxh3 {[%clk 0:00:35]} 64. Nh6 {[%clk 0:00:02]}  Kf6 {[%clk 0:00:32]} 65. Ng8+ {[%clk 0:00:01]}  Kf7 {[%clk 0:00:32]} 66. Nh6+ {[%clk 0:00:02]}  Kg7 {[%clk 0:00:33]} 67. Ng4 {[%clk 0:00:02]}  Bxg4 {[%clk 0:00:33]} 68. fxg4 {[%clk 0:00:03]}  Kf6 {[%clk 0:00:33]} 69. Kf3 {[%clk 0:00:03]}  h3 {[%clk 0:00:33]} 70. Bc1 {[%clk 0:00:03]}  Kg5 {[%clk 0:00:33]} 71. Bd2 {[%clk 0:00:01]}  h2 {[%clk 0:00:30]} 0-1


[Site "https://www.chess.com"]

[Event "Titled Tuesday Blitz October 31 Late 2023"]
[White "Piesik, Piotr"]
[Black "Kazakouski, Valery"]
[WhiteFideId "1136194"]
[BlackFideId "13507443"]
[WhiteElo "2683"]
[BlackElo "2888"]
[Result "0-1"]
[Round "8"]
[TimeControl "180+1"]
[Date "2023.10.31"]
[WhiteClock "0:01:23"]
[BlackClock "0:01:07"]
[Board "20"]

1. Nf3 {[%clk 0:02:55]}  d5 {[%clk 0:03:00]} 2. g3 {[%clk 0:02:55]}  Nd7 {[%clk 0:03:00]} 3. Bg2 {[%clk 0:02:56]}  e5 {[%clk 0:02:59]} 4. d3 {[%clk 0:02:56]}  Ngf6 {[%clk 0:03:00]} 5. O-O {[%clk 0:02:57]}  Bc5 {[%clk 0:03:00]} 6. c3 {[%clk 0:02:56]}  O-O {[%clk 0:02:59]} 7. Qc2 {[%clk 0:02:51]}  h6 {[%clk 0:02:57]} 8. e4 {[%clk 0:02:51]}  dxe4 {[%clk 0:02:53]} 9. dxe4 {[%clk 0:02:51]}  a5 {[%clk 0:02:54]} 10. Nbd2 {[%clk 0:02:47]}  b6 {[%clk 0:02:53]} 11. Nb3 {[%clk 0:02:45]}  Bd6 {[%clk 0:02:51]} 12. Be3 {[%clk 0:02:43]}  Ng4 {[%clk 0:02:49]} 13. Rfe1 {[%clk 0:02:42]}  Nxe3 {[%clk 0:02:48]} 14. Rxe3 {[%clk 0:02:43]}  a4 {[%clk 0:02:48]} 15. Nbd2 {[%clk 0:02:43]}  Bc5 {[%clk 0:02:47]} 16. Ree1 {[%clk 0:02:42]}  Qe7 {[%clk 0:02:46]} 17. b4 {[%clk 0:02:42]}  axb3 {[%clk 0:02:40]} 18. axb3 {[%clk 0:02:43]}  Rxa1 {[%clk 0:02:37]} 19. Rxa1 {[%clk 0:02:42]}  b5 {[%clk 0:02:38]} 20. b4 {[%clk 0:02:42]}  Bb6 {[%clk 0:02:38]} 21. Bf1 {[%clk 0:02:42]}  c6 {[%clk 0:02:36]} 22. Nh4 {[%clk 0:02:42]}  Nf6 {[%clk 0:02:32]} 23. Nf5 {[%clk 0:02:30]}  Qc7 {[%clk 0:02:19]} 24. Be2 {[%clk 0:02:25]}  g6 {[%clk 0:02:16]} 25. Nh4 {[%clk 0:02:21]}  Rd8 {[%clk 0:02:13]} 26. Nb3 {[%clk 0:02:18]}  Ng4 {[%clk 0:02:04]} 27. Bxg4 {[%clk 0:02:16]}  Bxg4 {[%clk 0:02:05]} 28. Kg2 {[%clk 0:02:13]}  Qd7 {[%clk 0:02:03]} 29. Nf3 {[%clk 0:02:04]}  Bxf3+ {[%clk 0:01:36]} 30. Kxf3 {[%clk 0:02:05]}  Qd3+ {[%clk 0:01:36]} 31. Qxd3 {[%clk 0:02:04]}  Rxd3+ {[%clk 0:01:37]} 32. Ke2 {[%clk 0:02:00]}  Rxc3 {[%clk 0:01:38]} 33. Nd2 {[%clk 0:02:00]}  Rc2 {[%clk 0:01:35]} 34. Ra6 {[%clk 0:01:41]}  Bxf2 {[%clk 0:01:30]} 35. Kd3 {[%clk 0:01:40]}  Rb2 {[%clk 0:01:22]} 36. Rxc6 {[%clk 0:01:39]}  Rxb4 {[%clk 0:01:22]} 37. Nf3 {[%clk 0:01:35]}  Bd4 {[%clk 0:01:19]} 38. Nxd4 {[%clk 0:01:34]}  Rxd4+ {[%clk 0:01:19]} 39. Ke3 {[%clk 0:01:34]}  Rc4 {[%clk 0:01:16]} 40. Rb6 {[%clk 0:01:31]}  Rc3+ {[%clk 0:01:09]} 41. Kd2 {[%clk 0:01:31]}  Rb3 {[%clk 0:01:08]} 42. Kc2 {[%clk 0:01:31]}  Rb4 {[%clk 0:01:08]} 43. Kd3 {[%clk 0:01:31]}  Rb2 {[%clk 0:01:08]} 44. Kc3 {[%clk 0:01:25]}  Rxh2 {[%clk 0:01:06]} 45. Rxb5 {[%clk 0:01:25]}  Rg2 {[%clk 0:01:06]} 46. Rxe5 {[%clk 0:01:23]}  Rxg3+ {[%clk 0:01:07]} 0-1


[Site "https://www.chess.com"]

[Event "Titled Tuesday Blitz October 31 Late 2023"]
[White "Gokerkan, Cem Kaan"]
[Black "Luczak, Filip"]
[WhiteFideId "6336760"]
[BlackFideId "1193686"]
[WhiteElo "2863"]
[BlackElo "2670"]
[Result "1-0"]
[Round "8"]
[TimeControl "180+1"]
[Date "2023.10.31"]
[WhiteClock "0:00:14"]
[BlackClock "0:00:06"]
[Board "21"]

1. e4 {[%clk 0:03:00]}  g6 {[%clk 0:02:59]} 2. d4 {[%clk 0:03:01]}  Bg7 {[%clk 0:02:59]} 3. Nc3 {[%clk 0:03:02]}  c5 {[%clk 0:02:59]} 4. dxc5 {[%clk 0:03:02]}  Bxc3+ {[%clk 0:02:59]} 5. bxc3 {[%clk 0:03:03]}  Nf6 {[%clk 0:03:00]} 6. e5 {[%clk 0:02:58]}  Ne4 {[%clk 0:03:00]} 7. Qd4 {[%clk 0:02:56]}  Qa5 {[%clk 0:02:59]} 8. Bd3 {[%clk 0:02:37]}  Nc6 {[%clk 0:02:53]} 9. Qxe4 {[%clk 0:02:10]}  Qxc3+ {[%clk 0:02:52]} 10. Ke2 {[%clk 0:02:11]}  Qxa1 {[%clk 0:02:52]} 11. Nf3 {[%clk 0:02:11]}  b6 {[%clk 0:02:39]} 12. Rd1 {[%clk 0:02:07]}  Qxa2 {[%clk 0:02:35]} 13. cxb6 {[%clk 0:01:24]}  axb6 {[%clk 0:02:32]} 14. Bh6 {[%clk 0:01:23]}  Ba6 {[%clk 0:02:29]} 15. Ke1 {[%clk 0:01:16]}  Bxd3 {[%clk 0:02:12]} 16. Qxd3 {[%clk 0:01:16]}  Qa5+ {[%clk 0:02:07]} 17. Kf1 {[%clk 0:01:13]}  Qa6 {[%clk 0:01:58]} 18. c4 {[%clk 0:01:12]}  O-O-O {[%clk 0:01:47]} 19. Kg1 {[%clk 0:01:06]}  d6 {[%clk 0:01:39]} 20. Qd5 {[%clk 0:01:02]}  Qb7 {[%clk 0:01:37]} 21. Qxf7 {[%clk 0:00:58]}  Nxe5 {[%clk 0:01:34]} 22. Nxe5 {[%clk 0:00:57]}  dxe5 {[%clk 0:01:34]} 23. Re1 {[%clk 0:00:49]}  Qc7 {[%clk 0:01:23]} 24. h3 {[%clk 0:00:44]}  Rd7 {[%clk 0:01:15]} 25. Rb1 {[%clk 0:00:37]}  Rhd8 {[%clk 0:01:11]} 26. Rb5 {[%clk 0:00:26]}  Rd6 {[%clk 0:00:53]} 27. Be3 {[%clk 0:00:23]}  Rf6 {[%clk 0:00:49]} 28. Qxh7 {[%clk 0:00:24]}  Qxc4 {[%clk 0:00:35]} 29. Rb1 {[%clk 0:00:23]}  Qf7 {[%clk 0:00:15]} 30. Qh4 {[%clk 0:00:19]}  Kb7 {[%clk 0:00:12]} 31. Qa4 {[%clk 0:00:18]}  Qd5 {[%clk 0:00:09]} 32. Ra1 {[%clk 0:00:16]}  Kc7 {[%clk 0:00:05]} 33. Qa7+ {[%clk 0:00:15]}  Qb7 {[%clk 0:00:05]} 34. Rc1+ {[%clk 0:00:15]}  Rc6 {[%clk 0:00:05]} 35. Bxb6+ {[%clk 0:00:15]}  Kc8 {[%clk 0:00:04]} 36. Rxc6+ {[%clk 0:00:06]}  Qxc6 {[%clk 0:00:03]} 37. Bxd8 {[%clk 0:00:05]}  Kxd8 {[%clk 0:00:03]} 38. Qb8+ {[%clk 0:00:05]}  Kd7 {[%clk 0:00:02]} 39. Qxe5 {[%clk 0:00:06]}  Qc1+ {[%clk 0:00:03]} 40. Kh2 {[%clk 0:00:06]}  Qh6 {[%clk 0:00:03]} 41. f4 {[%clk 0:00:06]}  Ke8 {[%clk 0:00:04]} 42. Kg3 {[%clk 0:00:05]}  Kf7 {[%clk 0:00:04]} 43. Qd5+ {[%clk 0:00:06]}  Kf8 {[%clk 0:00:03]} 44. Qd8+ {[%clk 0:00:06]}  Kf7 {[%clk 0:00:04]} 45. Qd5+ {[%clk 0:00:06]}  Kf8 {[%clk 0:00:04]} 46. Qe6 {[%clk 0:00:07]}  Qg7 {[%clk 0:00:04]} 47. Qc8+ {[%clk 0:00:07]}  Kf7 {[%clk 0:00:04]} 48. Qc4+ {[%clk 0:00:07]}  Kf8 {[%clk 0:00:04]} 49. Qd3 {[%clk 0:00:05]}  Qf6 {[%clk 0:00:05]} 50. Qd8+ {[%clk 0:00:06]}  Kf7 {[%clk 0:00:05]} 51. Qd5+ {[%clk 0:00:06]}  Kf8 {[%clk 0:00:05]} 52. Qe5 {[%clk 0:00:07]}  Qc6 {[%clk 0:00:04]} 53. Qh8+ {[%clk 0:00:06]}  Kf7 {[%clk 0:00:04]} 54. Qh7+ {[%clk 0:00:07]}  Kf8 {[%clk 0:00:05]} 55. Qh8+ {[%clk 0:00:07]}  Kf7 {[%clk 0:00:05]} 56. Qe5 {[%clk 0:00:07]}  Qa6 {[%clk 0:00:05]} 57. Kh2 {[%clk 0:00:07]}  Qd3 {[%clk 0:00:04]} 58. Qg5 {[%clk 0:00:07]}  Qe4 {[%clk 0:00:03]} 59. Qg4 {[%clk 0:00:07]}  Kg7 {[%clk 0:00:03]} 60. Kg3 {[%clk 0:00:07]}  Kf7 {[%clk 0:00:03]} 61. Qf3 {[%clk 0:00:08]}  Qf5 {[%clk 0:00:04]} 62. Qb3+ {[%clk 0:00:07]}  Kg7 {[%clk 0:00:04]} 63. Qe3 {[%clk 0:00:07]}  Kf7 {[%clk 0:00:04]} 64. Qe5 {[%clk 0:00:08]}  Qd3+ {[%clk 0:00:04]} 65. Kh2 {[%clk 0:00:08]}  Qd7 {[%clk 0:00:05]} 66. Qg5 {[%clk 0:00:08]}  Kg7 {[%clk 0:00:05]} 67. Qg4 {[%clk 0:00:08]}  Qd6 {[%clk 0:00:04]} 68. Kg3 {[%clk 0:00:07]}  Kf7 {[%clk 0:00:05]} 69. Qf3 {[%clk 0:00:07]}  Qb6 {[%clk 0:00:05]} 70. Qe4 {[%clk 0:00:07]}  Kg7 {[%clk 0:00:05]} 71. Qxe7+ {[%clk 0:00:07]}  Kh6 {[%clk 0:00:05]} 72. Qh4+ {[%clk 0:00:07]}  Kg7 {[%clk 0:00:05]} 73. Qe7+ {[%clk 0:00:08]}  Kh6 {[%clk 0:00:05]} 74. Qe5 {[%clk 0:00:09]}  Qb3+ {[%clk 0:00:05]} 75. Kh2 {[%clk 0:00:10]}  Qg8 {[%clk 0:00:05]} 76. Qg5+ {[%clk 0:00:09]}  Kh7 {[%clk 0:00:05]} 77. f5 {[%clk 0:00:10]}  Qb8+ {[%clk 0:00:05]} 78. Qg3 {[%clk 0:00:10]}  Qxg3+ {[%clk 0:00:04]} 79. Kxg3 {[%clk 0:00:11]}  gxf5 {[%clk 0:00:05]} 80. Kf4 {[%clk 0:00:11]}  Kg6 {[%clk 0:00:05]} 81. h4 {[%clk 0:00:11]}  Kf6 {[%clk 0:00:06]} 82. h5 {[%clk 0:00:11]}  Ke6 {[%clk 0:00:06]} 83. h6 {[%clk 0:00:10]}  Kf6 {[%clk 0:00:06]} 84. h7 {[%clk 0:00:11]}  Kg7 {[%clk 0:00:07]} 85. Kxf5 {[%clk 0:00:12]}  Kxh7 {[%clk 0:00:07]} 86. Kf6 {[%clk 0:00:13]}  Kh8 {[%clk 0:00:07]} 87. g4 {[%clk 0:00:11]}  Kh7 {[%clk 0:00:07]} 88. g5 {[%clk 0:00:12]}  Kh8 {[%clk 0:00:07]} 89. Kf7 {[%clk 0:00:12]}  Kh7 {[%clk 0:00:07]} 90. g6+ {[%clk 0:00:13]}  Kh6 {[%clk 0:00:06]} 91. g7 {[%clk 0:00:14]} 1-0


[Site "https://www.chess.com"]

[Event "Titled Tuesday Blitz October 31 Late 2023"]
[White "Haydon, David L"]
[Black "Alexandre, Anne Shopie Elizabeth"]
[WhiteFideId "415405"]
[BlackFideId "11902418"]
[WhiteElo "2637"]
[BlackElo "2844"]
[Result "0-1"]
[Round "8"]
[TimeControl "180+1"]
[Date "2023.10.31"]
[WhiteClock "0:00:00"]
[BlackClock "0:00:21"]
[Board "22"]

1. d4 {[%clk 0:03:00]}  Nf6 {[%clk 0:02:59]} 2. c4 {[%clk 0:03:00]}  e6 {[%clk 0:03:00]} 3. Nf3 {[%clk 0:03:00]}  d5 {[%clk 0:03:01]} 4. g3 {[%clk 0:03:00]}  Bb4+ {[%clk 0:02:59]} 5. Bd2 {[%clk 0:03:00]}  a5 {[%clk 0:03:00]} 6. Qc2 {[%clk 0:02:58]}  c6 {[%clk 0:02:59]} 7. Bg2 {[%clk 0:02:58]}  O-O {[%clk 0:02:59]} 8. O-O {[%clk 0:02:58]}  Nbd7 {[%clk 0:02:59]} 9. Rd1 {[%clk 0:02:56]}  Be7 {[%clk 0:02:55]} 10. b3 {[%clk 0:02:50]}  b6 {[%clk 0:02:45]} 11. Nc3 {[%clk 0:02:48]}  Ba6 {[%clk 0:02:44]} 12. Na4 {[%clk 0:02:33]}  Rc8 {[%clk 0:02:39]} 13. Bf4 {[%clk 0:02:29]}  b5 {[%clk 0:02:34]} 14. Nb2 {[%clk 0:02:26]}  bxc4 {[%clk 0:02:33]} 15. bxc4 {[%clk 0:02:25]}  c5 {[%clk 0:02:32]} 16. dxc5 {[%clk 0:02:22]}  Rxc5 {[%clk 0:02:31]} 17. Be3 {[%clk 0:02:19]}  Rc8 {[%clk 0:02:29]} 18. Nd2 {[%clk 0:02:02]}  Ne5 {[%clk 0:02:27]} 19. Rac1 {[%clk 0:01:50]}  Neg4 {[%clk 0:02:03]} 20. Bf4 {[%clk 0:01:37]}  e5 {[%clk 0:01:59]} 21. Bg5 {[%clk 0:01:35]}  Qb6 {[%clk 0:01:48]} 22. e3 {[%clk 0:01:25]}  Nxf2 {[%clk 0:01:33]} 23. Na4 {[%clk 0:01:11]}  Qa7 {[%clk 0:01:29]} 24. Bxf6 {[%clk 0:00:58]}  Nxd1 {[%clk 0:01:19]} 25. Rxd1 {[%clk 0:00:50]}  Bxf6 {[%clk 0:01:13]} 26. Bxd5 {[%clk 0:00:50]}  Qxe3+ {[%clk 0:01:13]} 27. Kg2 {[%clk 0:00:48]}  Qe2+ {[%clk 0:01:12]} 28. Kg1 {[%clk 0:00:47]}  Rfd8 {[%clk 0:00:55]} 29. Nc3 {[%clk 0:00:41]}  Qe3+ {[%clk 0:00:55]} 30. Kg2 {[%clk 0:00:38]}  e4 {[%clk 0:00:39]} 31. Ndxe4 {[%clk 0:00:34]}  Bxc3 {[%clk 0:00:38]} 32. Nxc3 {[%clk 0:00:32]}  g6 {[%clk 0:00:30]} 33. Rf1 {[%clk 0:00:28]}  Rc7 {[%clk 0:00:24]} 34. Rf3 {[%clk 0:00:27]}  Qe5 {[%clk 0:00:24]} 35. Qf2 {[%clk 0:00:00]}  Bxc4 {[%clk 0:00:21]} 0-1


[Site "https://www.chess.com"]

[Event "Titled Tuesday Blitz October 31 Late 2023"]
[White "Bartel, Michal"]
[Black "Kobo, Ori"]
[WhiteFideId "1119257"]
[BlackFideId "2812320"]
[WhiteElo "2619"]
[BlackElo "2816"]
[Result "0-1"]
[Round "8"]
[TimeControl "180+1"]
[Date "2023.10.31"]
[WhiteClock "0:00:17"]
[BlackClock "0:00:09"]
[Board "24"]

1. e4 {[%clk 0:02:56]}  c5 {[%clk 0:02:59]} 2. Ne2 {[%clk 0:02:56]}  Nc6 {[%clk 0:02:58]} 3. g3 {[%clk 0:02:57]}  d5 {[%clk 0:02:56]} 4. Bg2 {[%clk 0:02:56]}  dxe4 {[%clk 0:02:52]} 5. Bxe4 {[%clk 0:02:56]}  Nf6 {[%clk 0:02:51]} 6. Bg2 {[%clk 0:02:57]}  Bg4 {[%clk 0:02:45]} 7. h3 {[%clk 0:02:57]}  Bh5 {[%clk 0:02:39]} 8. Nbc3 {[%clk 0:02:57]}  Qc7 {[%clk 0:02:31]} 9. d3 {[%clk 0:02:57]}  e6 {[%clk 0:02:23]} 10. g4 {[%clk 0:02:57]}  Bg6 {[%clk 0:02:23]} 11. f4 {[%clk 0:02:57]}  h5 {[%clk 0:02:17]} 12. Ng3 {[%clk 0:02:51]}  hxg4 {[%clk 0:02:13]} 13. hxg4 {[%clk 0:02:51]}  Rxh1+ {[%clk 0:02:13]} 14. Bxh1 {[%clk 0:02:52]}  O-O-O {[%clk 0:02:10]} 15. Be3 {[%clk 0:02:49]}  Nd4 {[%clk 0:02:00]} 16. Nge4 {[%clk 0:02:43]}  Nxe4 {[%clk 0:01:56]} 17. Nxe4 {[%clk 0:02:35]}  f5 {[%clk 0:01:49]} 18. Ng5 {[%clk 0:02:23]}  fxg4 {[%clk 0:01:44]} 19. Bxd4 {[%clk 0:02:22]}  cxd4 {[%clk 0:01:05]} 20. Qxg4 {[%clk 0:01:56]}  Bf5 {[%clk 0:01:02]} 21. Qf3 {[%clk 0:01:49]}  Bd6 {[%clk 0:00:51]} 22. Nh3 {[%clk 0:01:38]}  Rh8 {[%clk 0:00:47]} 23. Bg2 {[%clk 0:01:38]}  Bxh3 {[%clk 0:00:38]} 24. Bxh3 {[%clk 0:01:39]}  Bxf4 {[%clk 0:00:38]} 25. Kf1 {[%clk 0:01:32]}  Kb8 {[%clk 0:00:30]} 26. Re1 {[%clk 0:01:28]}  e5 {[%clk 0:00:27]} 27. Re2 {[%clk 0:01:26]}  Rf8 {[%clk 0:00:22]} 28. Rf2 {[%clk 0:01:26]}  Rf6 {[%clk 0:00:21]} 29. Qd5 {[%clk 0:01:23]}  a6 {[%clk 0:00:20]} 30. Bg2 {[%clk 0:01:20]}  Ka7 {[%clk 0:00:19]} 31. b4 {[%clk 0:01:15]}  Qb6 {[%clk 0:00:19]} 32. a3 {[%clk 0:01:12]}  Rd6 {[%clk 0:00:18]} 33. Qe4 {[%clk 0:01:11]}  Rc6 {[%clk 0:00:18]} 34. Bf3 {[%clk 0:01:10]}  Rc3 {[%clk 0:00:16]} 35. Rg2 {[%clk 0:01:09]}  g5 {[%clk 0:00:16]} 36. Rg1 {[%clk 0:01:01]}  Rxc2 {[%clk 0:00:16]} 37. Rh1 {[%clk 0:01:02]}  Rc1+ {[%clk 0:00:16]} 38. Kg2 {[%clk 0:01:02]}  Rxh1 {[%clk 0:00:16]} 39. Kxh1 {[%clk 0:01:03]}  Qc7 {[%clk 0:00:16]} 40. Kg2 {[%clk 0:01:00]}  Kb8 {[%clk 0:00:16]} 41. Qd5 {[%clk 0:00:56]}  Qc2+ {[%clk 0:00:16]} 42. Kh3 {[%clk 0:00:57]}  Qh2+ {[%clk 0:00:15]} 43. Kg4 {[%clk 0:00:57]}  Qh4+ {[%clk 0:00:15]} 44. Kf5 {[%clk 0:00:58]}  Qh7+ {[%clk 0:00:15]} 45. Kg4 {[%clk 0:00:57]}  Qc7 {[%clk 0:00:14]} 46. Be4 {[%clk 0:00:54]}  Qc8+ {[%clk 0:00:14]} 47. Bf5 {[%clk 0:00:55]}  Qc6 {[%clk 0:00:13]} 48. Qg8+ {[%clk 0:00:51]}  Ka7 {[%clk 0:00:13]} 49. Be4 {[%clk 0:00:51]}  Qd7+ {[%clk 0:00:13]} 50. Bf5 {[%clk 0:00:52]}  Qc6 {[%clk 0:00:11]} 51. Be4 {[%clk 0:00:53]}  Qc7 {[%clk 0:00:11]} 52. Qd5 {[%clk 0:00:46]}  Qc8+ {[%clk 0:00:11]} 53. Kh5 {[%clk 0:00:44]}  Qh8+ {[%clk 0:00:11]} 54. Kg4 {[%clk 0:00:40]}  Qh4+ {[%clk 0:00:10]} 55. Kf5 {[%clk 0:00:41]}  Qh7+ {[%clk 0:00:10]} 56. Kf6 {[%clk 0:00:41]}  Qh6+ {[%clk 0:00:09]} 57. Kf5 {[%clk 0:00:40]}  Qb6 {[%clk 0:00:09]} 58. Kg4 {[%clk 0:00:33]}  Kb8 {[%clk 0:00:08]} 59. Qg8+ {[%clk 0:00:32]}  Ka7 {[%clk 0:00:08]} 60. Qd5 {[%clk 0:00:33]}  Qc7 {[%clk 0:00:08]} 61. a4 {[%clk 0:00:32]}  Qb6 {[%clk 0:00:07]} 62. b5 {[%clk 0:00:31]}  axb5 {[%clk 0:00:08]} 63. axb5 {[%clk 0:00:32]}  Qc7 {[%clk 0:00:07]} 64. Qa2+ {[%clk 0:00:30]}  Kb8 {[%clk 0:00:07]} 65. Qd5 {[%clk 0:00:28]}  Qc8+ {[%clk 0:00:07]} 66. Bf5 {[%clk 0:00:27]}  Qc7 {[%clk 0:00:06]} 67. Qe6 {[%clk 0:00:26]}  Ka7 {[%clk 0:00:06]} 68. Qa2+ {[%clk 0:00:24]}  Kb6 {[%clk 0:00:06]} 69. Qd5 {[%clk 0:00:23]}  Qc5 {[%clk 0:00:06]} 70. Qd8+ {[%clk 0:00:19]}  Kxb5 {[%clk 0:00:06]} 71. Bd7+ {[%clk 0:00:19]}  Kb4 {[%clk 0:00:06]} 72. Qa8 {[%clk 0:00:18]}  e4 {[%clk 0:00:03]} 73. Qa4+ {[%clk 0:00:17]}  Kc3 {[%clk 0:00:03]} 74. dxe4 {[%clk 0:00:18]}  d3 {[%clk 0:00:04]} 75. Be6 {[%clk 0:00:17]}  Qg1+ {[%clk 0:00:04]} 76. Kf5 {[%clk 0:00:17]}  d2 {[%clk 0:00:04]} 77. Qc4+ {[%clk 0:00:16]}  Kb2 {[%clk 0:00:03]} 78. Qb3+ {[%clk 0:00:17]}  Kc1 {[%clk 0:00:04]} 79. Qc3+ {[%clk 0:00:15]}  Kd1 {[%clk 0:00:04]} 80. Bb3+ {[%clk 0:00:15]}  Ke2 {[%clk 0:00:04]} 81. Bc4+ {[%clk 0:00:15]}  Kf2 {[%clk 0:00:05]} 82. Qd4+ {[%clk 0:00:15]}  Be3 {[%clk 0:00:05]} 83. Qd6 {[%clk 0:00:14]}  d1=Q {[%clk 0:00:06]} 84. Qf6 {[%clk 0:00:11]}  Qf3+ {[%clk 0:00:06]} 85. Ke6 {[%clk 0:00:12]}  Qxf6+ {[%clk 0:00:07]} 86. Kxf6 {[%clk 0:00:13]}  g4 {[%clk 0:00:07]} 87. e5 {[%clk 0:00:12]}  Bd4 {[%clk 0:00:08]} 88. Bd5 {[%clk 0:00:12]}  Bxe5+ {[%clk 0:00:08]} 89. Kf7 {[%clk 0:00:13]}  g3 {[%clk 0:00:09]} 90. Bf3 {[%clk 0:00:14]}  Kxf3 {[%clk 0:00:09]} 91. Kg8 {[%clk 0:00:15]}  g2 {[%clk 0:00:10]} 92. Kh7 {[%clk 0:00:16]}  Qf2 {[%clk 0:00:09]} 93. Kg8 {[%clk 0:00:16]}  g1=Q+ {[%clk 0:00:09]} 94. Kh7 {[%clk 0:00:17]}  Qfh2# {[%clk 0:00:09]} 0-1


[Site "https://www.chess.com"]